[Event "Titled Tuesday Blitz April 18 Early 2023"]
[White "Principe, Alexander"]
[Black "Deac, Bogdan-Daniel"]
[WhiteFideId "3804542"]
[BlackFideId "1226380"]
[WhiteElo "2203"]
[BlackElo "2649"]
[Result "0-1"]
[Round "01"]
[TimeControl "180+2"]
[Date "2023.04.18"]
[WhiteClock "0:00:10"]
[BlackClock "0:00:14"]

1. e4 {[%clk 0:02:59]}  Nf6 {[%clk 0:02:57]} 2. e5 {[%clk 0:02:59]}  Nd5 {[%clk 0:02:57]} 3. d4 {[%clk 0:02:54]}  d6 {[%clk 0:02:57]} 4. exd6 {[%clk 0:02:54]}  cxd6 {[%clk 0:02:56]} 5. c3 {[%clk 0:02:54]}  g6 {[%clk 0:02:55]} 6. Bd3 {[%clk 0:02:54]}  Bg7 {[%clk 0:02:55]} 7. Ne2 {[%clk 0:02:54]}  O-O {[%clk 0:02:55]} 8. O-O {[%clk 0:02:54]}  Nc6 {[%clk 0:02:55]} 9. Na3 {[%clk 0:02:51]}  a6 {[%clk 0:02:51]} 10. Nf4 {[%clk 0:02:49]}  Nf6 {[%clk 0:02:45]} 11. Re1 {[%clk 0:01:46]}  e5 {[%clk 0:02:36]} 12. dxe5 {[%clk 0:01:42]}  dxe5 {[%clk 0:02:36]} 13. Ne2 {[%clk 0:01:42]}  Qc7 {[%clk 0:02:18]} 14. Bg5 {[%clk 0:01:40]}  Rd8 {[%clk 0:02:16]} 15. Bxf6 {[%clk 0:01:39]}  Bxf6 {[%clk 0:02:15]} 16. Qc2 {[%clk 0:01:37]}  b5 {[%clk 0:01:53]} 17. Rad1 {[%clk 0:01:35]}  Be6 {[%clk 0:01:48]} 18. Ng3 {[%clk 0:01:27]}  Be7 {[%clk 0:01:45]} 19. Be4 {[%clk 0:01:09]}  Rxd1 {[%clk 0:01:31]} 20. Qxd1 {[%clk 0:00:55]}  Bxa3 {[%clk 0:01:29]} 21. bxa3 {[%clk 0:00:55]}  Rd8 {[%clk 0:01:27]} 22. Qc2 {[%clk 0:00:51]}  Na5 {[%clk 0:01:06]} 23. Bd3 {[%clk 0:00:27]}  f5 {[%clk 0:00:57]} 24. h4 {[%clk 0:00:20]}  e4 {[%clk 0:00:50]} 25. Bf1 {[%clk 0:00:20]}  Qf4 {[%clk 0:00:48]} 26. h5 {[%clk 0:00:19]}  Rd2 {[%clk 0:00:46]} 27. Ne2 {[%clk 0:00:19]}  Qxf2+ {[%clk 0:00:40]} 28. Kxf2 {[%clk 0:00:19]}  Rxc2 {[%clk 0:00:40]} 29. Ke3 {[%clk 0:00:19]}  Rxa2 {[%clk 0:00:35]} 30. Nf4 {[%clk 0:00:18]}  Kf7 {[%clk 0:00:32]} 31. hxg6+ {[%clk 0:00:18]}  hxg6 {[%clk 0:00:32]} 32. g4 {[%clk 0:00:17]}  Rxa3 {[%clk 0:00:28]} 33. Kd4 {[%clk 0:00:17]}  Nc6+ {[%clk 0:00:27]} 34. Kc5 {[%clk 0:00:17]}  Rxc3+ {[%clk 0:00:26]} 35. Kd6 {[%clk 0:00:18]}  Nd4 {[%clk 0:00:27]} 36. gxf5 {[%clk 0:00:11]}  gxf5 {[%clk 0:00:20]} 37. Bg2 {[%clk 0:00:11]}  b4 {[%clk 0:00:12]} 38. Rh1 {[%clk 0:00:11]}  Nb5+ {[%clk 0:00:12]} 39. Ke5 {[%clk 0:00:09]}  Rc5+ {[%clk 0:00:13]} 40. Nd5 {[%clk 0:00:08]}  Rxd5+ {[%clk 0:00:13]} 41. Kf4 {[%clk 0:00:09]}  b3 {[%clk 0:00:14]} 42. Rh7+ {[%clk 0:00:10]}  Kf6 {[%clk 0:00:14]} 43. Rh6+ {[%clk 0:00:10]}  Ke7 {[%clk 0:00:14]} 0-1


[Site "https://www.chess.com"]

[Event "Titled Tuesday Blitz April 18 Early 2023"]
[White "Berthier, Hugo"]
[Black "Terry, Renato"]
[WhiteFideId "655864"]
[BlackFideId "3803457"]
[WhiteElo "2193"]
[BlackElo "2575"]
[Result "0-1"]
[Round "01"]
[TimeControl "180+2"]
[Date "2023.04.18"]
[WhiteClock "0:02:05"]
[BlackClock "0:02:33"]

1. e4 {[%clk 0:02:59]}  e6 {[%clk 0:03:00]} 2. d4 {[%clk 0:02:59]}  d5 {[%clk 0:03:00]} 3. e5 {[%clk 0:03:00]}  c5 {[%clk 0:03:00]} 4. c3 {[%clk 0:03:01]}  Qb6 {[%clk 0:03:00]} 5. Nf3 {[%clk 0:03:01]}  Bd7 {[%clk 0:02:59]} 6. Be2 {[%clk 0:03:01]}  cxd4 {[%clk 0:02:58]} 7. cxd4 {[%clk 0:03:01]}  Bb5 {[%clk 0:02:57]} 8. Nc3 {[%clk 0:03:02]}  Bxe2 {[%clk 0:02:56]} 9. Qxe2 {[%clk 0:03:02]}  Nc6 {[%clk 0:02:55]} 10. Be3 {[%clk 0:03:01]}  Nge7 {[%clk 0:02:55]} 11. O-O {[%clk 0:03:00]}  Nf5 {[%clk 0:02:55]} 12. Rfd1 {[%clk 0:03:00]}  Be7 {[%clk 0:02:50]} 13. a3 {[%clk 0:03:00]}  Na5 {[%clk 0:02:46]} 14. b4 {[%clk 0:02:55]}  Nc4 {[%clk 0:02:46]} 15. Na4 {[%clk 0:02:38]}  Qb5 {[%clk 0:02:45]} 16. Nc3 {[%clk 0:02:30]}  Qd7 {[%clk 0:02:45]} 17. b5 {[%clk 0:02:23]}  Rc8 {[%clk 0:02:43]} 18. Rdc1 {[%clk 0:02:13]}  Bxa3 {[%clk 0:02:39]} 19. Nd2 {[%clk 0:02:12]}  Bxc1 {[%clk 0:02:36]} 20. Nxc4 {[%clk 0:02:07]}  Bxe3 {[%clk 0:02:32]} 21. Nxe3 {[%clk 0:02:06]}  Rxc3 {[%clk 0:02:32]} 22. Nxf5 {[%clk 0:02:05]}  exf5 {[%clk 0:02:33]} 0-1


[Site "https://www.chess.com"]

[Event "Titled Tuesday Blitz April 18 Early 2023"]
[White "Chernomordik, Pavel"]
[Black "Narayanan.S.L"]
[WhiteFideId "2804530"]
[BlackFideId "5058422"]
[WhiteElo "2193"]
[BlackElo "2547"]
[Result "0-1"]
[Round "01"]
[TimeControl "180+2"]
[Date "2023.04.18"]
[WhiteClock "0:00:17"]
[BlackClock "0:02:02"]

1. e4 {[%clk 0:03:00]}  e6 {[%clk 0:02:58]} 2. Nc3 {[%clk 0:02:59]}  d5 {[%clk 0:02:58]} 3. d4 {[%clk 0:02:58]}  Bb4 {[%clk 0:02:57]} 4. Ne2 {[%clk 0:02:57]}  Nc6 {[%clk 0:02:54]} 5. a3 {[%clk 0:02:56]}  Bxc3+ {[%clk 0:02:54]} 6. Nxc3 {[%clk 0:02:56]}  dxe4 {[%clk 0:02:55]} 7. Be3 {[%clk 0:02:57]}  Nf6 {[%clk 0:02:54]} 8. Bb5 {[%clk 0:02:55]}  O-O {[%clk 0:02:54]} 9. O-O {[%clk 0:02:42]}  h6 {[%clk 0:02:50]} 10. Qd2 {[%clk 0:02:30]}  Ne7 {[%clk 0:02:46]} 11. Rfe1 {[%clk 0:02:19]}  Nf5 {[%clk 0:02:44]} 12. Rad1 {[%clk 0:02:16]}  Bd7 {[%clk 0:02:33]} 13. Bf1 {[%clk 0:02:14]}  Bc6 {[%clk 0:02:34]} 14. Bf4 {[%clk 0:02:11]}  Qe7 {[%clk 0:02:30]} 15. Be5 {[%clk 0:02:10]}  Rad8 {[%clk 0:02:31]} 16. Qf4 {[%clk 0:02:06]}  Rd7 {[%clk 0:02:28]} 17. Bxf6 {[%clk 0:01:47]}  Qxf6 {[%clk 0:02:28]} 18. Nxe4 {[%clk 0:01:47]}  Bxe4 {[%clk 0:02:28]} 19. Rxe4 {[%clk 0:01:46]}  Rfd8 {[%clk 0:02:25]} 20. c3 {[%clk 0:01:43]}  c5 {[%clk 0:02:25]} 21. g4 {[%clk 0:01:35]}  Nh4 {[%clk 0:02:20]} 22. Qxf6 {[%clk 0:01:23]}  gxf6 {[%clk 0:02:20]} 23. Bb5 {[%clk 0:01:22]}  Rd6 {[%clk 0:02:19]} 24. Rd3 {[%clk 0:01:11]}  f5 {[%clk 0:02:05]} 25. gxf5 {[%clk 0:00:40]}  Nxf5 {[%clk 0:02:04]} 26. Rg4+ {[%clk 0:00:31]}  Kf8 {[%clk 0:02:04]} 27. Rh3 {[%clk 0:00:21]}  cxd4 {[%clk 0:02:04]} 28. cxd4 {[%clk 0:00:20]}  Rxd4 {[%clk 0:02:04]} 29. Rxd4 {[%clk 0:00:19]}  Rxd4 {[%clk 0:02:04]} 30. Bd3 {[%clk 0:00:20]}  Ne7 {[%clk 0:02:03]} 31. Kf1 {[%clk 0:00:19]}  Kg7 {[%clk 0:02:03]} 32. Ke2 {[%clk 0:00:19]}  Ng6 {[%clk 0:02:02]} 33. Ke3 {[%clk 0:00:17]}  Rxd3+ {[%clk 0:02:02]} 0-1


[Site "https://www.chess.com"]

[Event "Titled Tuesday Blitz April 18 Early 2023"]
[White "Paravyan, David"]
[Black "Baches Garcia, Guillermo"]
[WhiteFideId "4194985"]
[BlackFideId "2209764"]
[WhiteElo "2563"]
[BlackElo "2478"]
[Result "1-0"]
[Round "01"]
[TimeControl "180+2"]
[Date "2023.04.18"]
[WhiteClock "0:01:00"]
[BlackClock "0:00:09"]

1. e4 {[%clk 0:02:56]}  c5 {[%clk 0:02:59]} 2. Nf3 {[%clk 0:02:56]}  d6 {[%clk 0:03:00]} 3. d4 {[%clk 0:02:56]}  cxd4 {[%clk 0:03:01]} 4. Nxd4 {[%clk 0:02:56]}  Nf6 {[%clk 0:03:01]} 5. Nc3 {[%clk 0:02:57]}  g6 {[%clk 0:03:00]} 6. Be3 {[%clk 0:02:56]}  Bg7 {[%clk 0:03:00]} 7. Be2 {[%clk 0:02:53]}  Nc6 {[%clk 0:02:56]} 8. Qd2 {[%clk 0:02:53]}  Ng4 {[%clk 0:02:48]} 9. Bxg4 {[%clk 0:02:51]}  Bxg4 {[%clk 0:02:48]} 10. f3 {[%clk 0:02:51]}  Bd7 {[%clk 0:02:47]} 11. O-O-O {[%clk 0:02:51]}  h5 {[%clk 0:02:39]} 12. Nxc6 {[%clk 0:02:46]}  bxc6 {[%clk 0:02:30]} 13. Bd4 {[%clk 0:02:47]}  e5 {[%clk 0:02:15]} 14. Be3 {[%clk 0:02:46]}  Bf8 {[%clk 0:02:15]} 15. f4 {[%clk 0:02:44]}  Be7 {[%clk 0:02:10]} 16. Rhf1 {[%clk 0:02:39]}  Bg4 {[%clk 0:02:00]} 17. Rde1 {[%clk 0:02:37]}  Be6 {[%clk 0:02:01]} 18. b3 {[%clk 0:02:34]}  exf4 {[%clk 0:01:53]} 19. Bxf4 {[%clk 0:02:26]}  O-O {[%clk 0:01:53]} 20. Kb1 {[%clk 0:02:24]}  d5 {[%clk 0:01:44]} 21. exd5 {[%clk 0:02:21]}  cxd5 {[%clk 0:01:44]} 22. Be5 {[%clk 0:02:22]}  Bg5 {[%clk 0:01:35]} 23. Qd4 {[%clk 0:02:07]}  Rc8 {[%clk 0:01:30]} 24. Bf6 {[%clk 0:01:56]}  Bxf6 {[%clk 0:01:23]} 25. Rxf6 {[%clk 0:01:57]}  Qb6 {[%clk 0:01:10]} 26. Qxb6 {[%clk 0:01:36]}  axb6 {[%clk 0:01:11]} 27. Nb5 {[%clk 0:01:37]}  Bf5 {[%clk 0:01:00]} 28. Nd4 {[%clk 0:01:31]}  Be4 {[%clk 0:01:00]} 29. g3 {[%clk 0:01:21]}  b5 {[%clk 0:00:43]} 30. Rb6 {[%clk 0:01:16]}  h4 {[%clk 0:00:42]} 31. Rxb5 {[%clk 0:01:11]}  hxg3 {[%clk 0:00:42]} 32. hxg3 {[%clk 0:01:11]}  Kg7 {[%clk 0:00:39]} 33. Kb2 {[%clk 0:01:11]}  Rh8 {[%clk 0:00:39]} 34. Rb7 {[%clk 0:01:11]}  Rh2 {[%clk 0:00:37]} 35. Rf1 {[%clk 0:01:11]}  Bxc2 {[%clk 0:00:24]} 36. Rfxf7+ {[%clk 0:01:09]}  Kh8 {[%clk 0:00:24]} 37. a4 {[%clk 0:01:01]}  Be4+ {[%clk 0:00:13]} 38. Ka3 {[%clk 0:01:01]}  Rd2 {[%clk 0:00:10]} 39. Rh7+ {[%clk 0:00:59]}  Kg8 {[%clk 0:00:09]} 40. Rbg7+ {[%clk 0:01:00]} 1-0


[Site "https://www.chess.com"]

[Event "Titled Tuesday Blitz April 18 Early 2023"]
[White "Toncheva, Nadya"]
[Black "Pranesh M"]
[WhiteFideId "2924056"]
[BlackFideId "35028600"]
[WhiteElo "2101"]
[BlackElo "2437"]
[Result "0-1"]
[Round "01"]
[TimeControl "180+2"]
[Date "2023.04.18"]
[WhiteClock "0:00:03"]
[BlackClock "0:00:41"]

1. e4 {[%clk 0:02:58]}  e5 {[%clk 0:02:58]} 2. Nf3 {[%clk 0:02:57]}  Nc6 {[%clk 0:02:59]} 3. Bb5 {[%clk 0:02:55]}  a6 {[%clk 0:02:59]} 4. Ba4 {[%clk 0:02:54]}  Nf6 {[%clk 0:02:59]} 5. O-O {[%clk 0:02:53]}  Bc5 {[%clk 0:02:59]} 6. d3 {[%clk 0:02:46]}  d6 {[%clk 0:02:55]} 7. h3 {[%clk 0:02:41]}  O-O {[%clk 0:02:55]} 8. c3 {[%clk 0:02:39]}  Ba7 {[%clk 0:02:49]} 9. Nbd2 {[%clk 0:02:36]}  Nh5 {[%clk 0:02:42]} 10. Bxc6 {[%clk 0:02:28]}  bxc6 {[%clk 0:02:43]} 11. Nc4 {[%clk 0:02:27]}  Qf6 {[%clk 0:02:33]} 12. Bg5 {[%clk 0:02:21]}  Qg6 {[%clk 0:02:32]} 13. Qd2 {[%clk 0:02:11]}  h6 {[%clk 0:02:24]} 14. Be3 {[%clk 0:01:44]}  Bxh3 {[%clk 0:02:23]} 15. Nh4 {[%clk 0:01:35]}  Qg4 {[%clk 0:02:23]} 16. Kh2 {[%clk 0:01:28]}  Qxh4 {[%clk 0:02:12]} 17. gxh3 {[%clk 0:01:28]}  f5 {[%clk 0:02:11]} 18. exf5 {[%clk 0:00:59]}  Rxf5 {[%clk 0:02:07]} 19. Qe2 {[%clk 0:00:48]}  Bxe3 {[%clk 0:01:20]} 20. Nxe3 {[%clk 0:00:36]}  Nf4 {[%clk 0:01:20]} 21. Qg4 {[%clk 0:00:33]}  Rh5 {[%clk 0:01:21]} 22. Qxh4 {[%clk 0:00:22]}  Rxh4 {[%clk 0:01:22]} 23. Kg3 {[%clk 0:00:16]}  Rxh3+ {[%clk 0:01:22]} 24. Kg4 {[%clk 0:00:16]}  Kf7 {[%clk 0:01:22]} 25. Rh1 {[%clk 0:00:13]}  h5+ {[%clk 0:01:22]} 26. Kf5 {[%clk 0:00:09]}  Rf3 {[%clk 0:00:59]} 27. Ke4 {[%clk 0:00:07]}  Rxf2 {[%clk 0:01:00]} 28. Raf1 {[%clk 0:00:07]}  Rxf1 {[%clk 0:00:44]} 29. Rxf1 {[%clk 0:00:07]}  Ke6 {[%clk 0:00:41]} 30. d4 {[%clk 0:00:08]}  Rf8 {[%clk 0:00:37]} 31. dxe5 {[%clk 0:00:04]}  d5+ {[%clk 0:00:38]} 32. Kd4 {[%clk 0:00:02]}  Ne2+ {[%clk 0:00:38]} 33. Kc5 {[%clk 0:00:03]}  Rxf1 {[%clk 0:00:38]} 34. Nxf1 {[%clk 0:00:04]}  g5 {[%clk 0:00:38]} 35. Kxc6 {[%clk 0:00:03]}  g4 {[%clk 0:00:39]} 36. Kxc7 {[%clk 0:00:03]}  g3 {[%clk 0:00:39]} 37. Ne3 {[%clk 0:00:02]}  h4 {[%clk 0:00:40]} 38. b4 {[%clk 0:00:03]}  h3 {[%clk 0:00:40]} 39. a4 {[%clk 0:00:03]}  g2 {[%clk 0:00:41]} 0-1


[Site "https://www.chess.com"]

[Event "Titled Tuesday Blitz April 18 Early 2023"]
[White "Drozdowski, Kacper"]
[Black "Miszler, Levente"]
[WhiteFideId "1136720"]
[BlackFideId "763276"]
[WhiteElo "2497"]
[BlackElo "2176"]
[Result "1-0"]
[Round "01"]
[TimeControl "180+2"]
[Date "2023.04.18"]
[WhiteClock "0:01:22"]
[BlackClock "0:01:47"]

1. e4 {[%clk 0:03:00]}  c6 {[%clk 0:02:57]} 2. d4 {[%clk 0:03:00]}  d5 {[%clk 0:02:57]} 3. e5 {[%clk 0:03:01]}  Bf5 {[%clk 0:02:57]} 4. Nf3 {[%clk 0:03:01]}  c5 {[%clk 0:02:55]} 5. dxc5 {[%clk 0:02:57]}  Nc6 {[%clk 0:02:53]} 6. Be3 {[%clk 0:02:45]}  e6 {[%clk 0:02:47]} 7. c3 {[%clk 0:02:45]}  f6 {[%clk 0:02:43]} 8. Bb5 {[%clk 0:02:42]}  a6 {[%clk 0:02:33]} 9. Bxc6+ {[%clk 0:02:41]}  bxc6 {[%clk 0:02:34]} 10. O-O {[%clk 0:02:37]}  Qc7 {[%clk 0:02:33]} 11. Bd4 {[%clk 0:02:35]}  Bg4 {[%clk 0:02:27]} 12. Re1 {[%clk 0:02:34]}  Rb8 {[%clk 0:02:12]} 13. b4 {[%clk 0:02:32]}  a5 {[%clk 0:02:12]} 14. h3 {[%clk 0:02:27]}  Bh5 {[%clk 0:02:11]} 15. exf6 {[%clk 0:02:24]}  Nxf6 {[%clk 0:02:10]} 16. Be5 {[%clk 0:02:20]}  Qc8 {[%clk 0:02:03]} 17. Bxb8 {[%clk 0:02:19]}  Qxb8 {[%clk 0:02:04]} 18. Rxe6+ {[%clk 0:02:19]}  Kf7 {[%clk 0:02:02]} 19. Ng5+ {[%clk 0:02:08]}  Kg6 {[%clk 0:02:01]} 20. g4 {[%clk 0:01:58]}  Kxg5 {[%clk 0:01:58]} 21. gxh5 {[%clk 0:01:58]}  Qf4 {[%clk 0:01:57]} 22. Nd2 {[%clk 0:01:55]}  axb4 {[%clk 0:01:53]} 23. Nf3+ {[%clk 0:01:41]}  Kxh5 {[%clk 0:01:52]} 24. cxb4 {[%clk 0:01:37]}  Ne4 {[%clk 0:01:50]} 25. Nd2+ {[%clk 0:01:32]}  Kh4 {[%clk 0:01:48]} 26. Nxe4 {[%clk 0:01:31]}  dxe4 {[%clk 0:01:48]} 27. Qg4+ {[%clk 0:01:23]}  Qxg4+ {[%clk 0:01:47]} 28. hxg4 {[%clk 0:01:24]}  Kxg4 {[%clk 0:01:47]} 29. Re1 {[%clk 0:01:22]} 1-0


[Site "https://www.chess.com"]

[Event "Titled Tuesday Blitz April 18 Early 2023"]
[White "Durarbayli, Vasif"]
[Black "Coenen, Michael"]
[WhiteFideId "13402935"]
[BlackFideId "4697367"]
[WhiteElo "2551"]
[BlackElo "2328"]
[Result "1-0"]
[Round "01"]
[TimeControl "180+2"]
[Date "2023.04.18"]
[WhiteClock "0:00:07"]
[BlackClock "0:00:11"]

1. e4 {[%clk 0:02:58]}  c5 {[%clk 0:02:58]} 2. Nf3 {[%clk 0:02:57]}  Nc6 {[%clk 0:02:58]} 3. d4 {[%clk 0:02:57]}  cxd4 {[%clk 0:02:59]} 4. Nxd4 {[%clk 0:02:57]}  d5 {[%clk 0:02:59]} 5. Bb5 {[%clk 0:02:52]}  dxe4 {[%clk 0:02:59]} 6. Nxc6 {[%clk 0:02:43]}  Qxd1+ {[%clk 0:03:00]} 7. Kxd1 {[%clk 0:02:43]}  a6 {[%clk 0:03:00]} 8. Nxe7+ {[%clk 0:02:22]}  Kxe7 {[%clk 0:03:01]} 9. Be2 {[%clk 0:02:19]}  Be6 {[%clk 0:02:59]} 10. c3 {[%clk 0:02:16]}  f5 {[%clk 0:02:57]} 11. Kc2 {[%clk 0:02:15]}  Nf6 {[%clk 0:02:54]} 12. h3 {[%clk 0:02:14]}  Kf7 {[%clk 0:02:54]} 13. Be3 {[%clk 0:02:14]}  Rc8 {[%clk 0:02:51]} 14. Nd2 {[%clk 0:02:01]}  Nd5 {[%clk 0:02:42]} 15. Nb3 {[%clk 0:01:47]}  Nxe3+ {[%clk 0:02:15]} 16. fxe3 {[%clk 0:01:48]}  Bc5 {[%clk 0:02:15]} 17. Nxc5 {[%clk 0:01:35]}  Rxc5 {[%clk 0:02:16]} 18. Rhd1 {[%clk 0:01:33]}  Ke7 {[%clk 0:02:16]} 19. Rd4 {[%clk 0:01:32]}  Rd8 {[%clk 0:02:15]} 20. Rxd8 {[%clk 0:01:21]}  Kxd8 {[%clk 0:02:16]} 21. Rd1+ {[%clk 0:01:20]}  Ke7 {[%clk 0:02:16]} 22. Rd4 {[%clk 0:01:19]}  Rc7 {[%clk 0:02:12]} 23. a4 {[%clk 0:01:17]}  Rd7 {[%clk 0:02:09]} 24. a5 {[%clk 0:01:16]}  Rxd4 {[%clk 0:02:02]} 25. cxd4 {[%clk 0:01:17]}  Kd6 {[%clk 0:02:02]} 26. h4 {[%clk 0:01:15]}  g6 {[%clk 0:02:02]} 27. Kc3 {[%clk 0:01:14]}  h6 {[%clk 0:02:01]} 28. g3 {[%clk 0:01:12]}  g5 {[%clk 0:02:01]} 29. hxg5 {[%clk 0:01:10]}  hxg5 {[%clk 0:02:02]} 30. Bc4 {[%clk 0:01:00]}  Bd7 {[%clk 0:01:54]} 31. Bf7 {[%clk 0:00:53]}  Bc6 {[%clk 0:01:41]} 32. Kb4 {[%clk 0:00:45]}  Bb5 {[%clk 0:01:18]} 33. Bg6 {[%clk 0:00:45]}  Ke6 {[%clk 0:01:16]} 34. Kc5 {[%clk 0:00:42]}  Kf6 {[%clk 0:01:14]} 35. Bh5 {[%clk 0:00:32]}  f4 {[%clk 0:01:07]} 36. gxf4 {[%clk 0:00:32]}  gxf4 {[%clk 0:01:08]} 37. exf4 {[%clk 0:00:32]}  e3 {[%clk 0:01:08]} 38. d5 {[%clk 0:00:17]}  e2 {[%clk 0:00:35]} 39. Bxe2 {[%clk 0:00:17]}  Bxe2 {[%clk 0:00:36]} 40. Kb6 {[%clk 0:00:14]}  Bc4 {[%clk 0:00:11]} 41. d6 {[%clk 0:00:04]}  Ke6 {[%clk 0:00:12]} 42. Kc7 {[%clk 0:00:04]}  Bb5 {[%clk 0:00:11]} 43. f5+ {[%clk 0:00:04]}  Kxf5 {[%clk 0:00:10]} 44. d7 {[%clk 0:00:05]}  Bxd7 {[%clk 0:00:10]} 45. Kxd7 {[%clk 0:00:06]}  Ke5 {[%clk 0:00:10]} 46. Kc7 {[%clk 0:00:06]}  Kd5 {[%clk 0:00:11]} 47. Kxb7 {[%clk 0:00:07]} 1-0


[Site "https://www.chess.com"]

[Event "Titled Tuesday Blitz April 18 Early 2023"]
[White "Zhigalko_Sergei"]
[Black "Saya, Ethan"]
[BlackFideId "26095181"]
[WhiteElo "2922"]
[BlackElo "2189"]
[Result "1-0"]
[Round "01"]
[TimeControl "180+2"]
[Date "2023.04.18"]
[WhiteClock "0:01:07"]
[BlackClock "0:00:28"]

1. e4 {[%clk 0:02:59]}  e6 {[%clk 0:03:00]} 2. d4 {[%clk 0:02:53]}  d5 {[%clk 0:02:57]} 3. e5 {[%clk 0:02:54]}  c5 {[%clk 0:02:57]} 4. c3 {[%clk 0:02:54]}  Nc6 {[%clk 0:02:57]} 5. Nf3 {[%clk 0:02:55]}  Bd7 {[%clk 0:02:57]} 6. Be2 {[%clk 0:02:55]}  f6 {[%clk 0:02:56]} 7. O-O {[%clk 0:02:55]}  fxe5 {[%clk 0:02:55]} 8. Nxe5 {[%clk 0:02:56]}  Nxe5 {[%clk 0:02:55]} 9. dxe5 {[%clk 0:02:57]}  Qc7 {[%clk 0:02:49]} 10. c4 {[%clk 0:02:55]}  Qxe5 {[%clk 0:02:13]} 11. Bh5+ {[%clk 0:02:41]}  g6 {[%clk 0:02:11]} 12. Bf3 {[%clk 0:02:42]}  O-O-O {[%clk 0:01:35]} 13. cxd5 {[%clk 0:02:34]}  exd5 {[%clk 0:01:21]} 14. Re1 {[%clk 0:02:34]}  Qd6 {[%clk 0:01:19]} 15. Qxd5 {[%clk 0:01:45]}  Qxd5 {[%clk 0:01:11]} 16. Bxd5 {[%clk 0:01:45]}  Nf6 {[%clk 0:01:11]} 17. Bf3 {[%clk 0:01:45]}  Bf5 {[%clk 0:00:52]} 18. Nc3 {[%clk 0:01:36]}  Bg7 {[%clk 0:00:50]} 19. Bf4 {[%clk 0:01:33]}  a6 {[%clk 0:00:41]} 20. Na4 {[%clk 0:01:27]}  Nd7 {[%clk 0:00:36]} 21. Re7 {[%clk 0:01:10]}  Bf6 {[%clk 0:00:30]} 22. Nb6+ {[%clk 0:01:08]}  Nxb6 {[%clk 0:00:28]} 23. Bxb7# {[%clk 0:01:07]} 1-0


[Site "https://www.chess.com"]

[Event "Titled Tuesday Blitz April 18 Early 2023"]
[White "Anton Guijarro, David"]
[Black "Jovic, Stanoje"]
[WhiteFideId "2285525"]
[BlackFideId "905020"]
[WhiteElo "2618"]
[BlackElo "2236"]
[Result "1/2-1/2"]
[Round "01"]
[TimeControl "180+2"]
[Date "2023.04.18"]
[WhiteClock "0:00:06"]
[BlackClock "0:00:10"]

1. d4 {[%clk 0:03:00]}  Nf6 {[%clk 0:02:57]} 2. Nf3 {[%clk 0:03:01]}  e6 {[%clk 0:02:57]} 3. Bg5 {[%clk 0:03:01]}  c5 {[%clk 0:02:56]} 4. d5 {[%clk 0:03:01]}  Qb6 {[%clk 0:02:54]} 5. Bxf6 {[%clk 0:03:01]}  gxf6 {[%clk 0:02:54]} 6. e4 {[%clk 0:03:01]}  Qxb2 {[%clk 0:02:51]} 7. Nbd2 {[%clk 0:03:02]}  Rg8 {[%clk 0:02:37]} 8. g3 {[%clk 0:02:47]}  f5 {[%clk 0:02:33]} 9. Bd3 {[%clk 0:02:43]}  fxe4 {[%clk 0:02:26]} 10. Bxe4 {[%clk 0:02:35]}  f5 {[%clk 0:02:18]} 11. Bd3 {[%clk 0:02:35]}  exd5 {[%clk 0:02:14]} 12. O-O {[%clk 0:02:31]}  d6 {[%clk 0:02:12]} 13. Nh4 {[%clk 0:02:25]}  Qf6 {[%clk 0:02:05]} 14. Re1+ {[%clk 0:02:20]}  Kd8 {[%clk 0:02:03]} 15. Ng2 {[%clk 0:02:14]}  Nc6 {[%clk 0:02:00]} 16. Nf4 {[%clk 0:02:11]}  c4 {[%clk 0:01:51]} 17. Nxd5 {[%clk 0:02:05]}  Qd4 {[%clk 0:01:37]} 18. Bxc4 {[%clk 0:02:05]}  Ne5 {[%clk 0:01:35]} 19. Rxe5 {[%clk 0:01:39]}  dxe5 {[%clk 0:01:32]} 20. c3 {[%clk 0:01:39]}  Qc5 {[%clk 0:01:24]} 21. Nf6 {[%clk 0:01:39]}  Kc7 {[%clk 0:00:58]} 22. Nxg8 {[%clk 0:01:34]}  b5 {[%clk 0:00:52]} 23. Bb3 {[%clk 0:01:29]}  Bb7 {[%clk 0:00:49]} 24. Qe2 {[%clk 0:01:07]}  Bg7 {[%clk 0:00:39]} 25. Rd1 {[%clk 0:00:43]}  Rd8 {[%clk 0:00:36]} 26. Nf1 {[%clk 0:00:41]}  Qc6 {[%clk 0:00:34]} 27. f3 {[%clk 0:00:41]}  Rxd1 {[%clk 0:00:32]} 28. Qxd1 {[%clk 0:00:41]}  Qxc3 {[%clk 0:00:32]} 29. Qc2 {[%clk 0:00:38]}  Qxc2 {[%clk 0:00:30]} 30. Bxc2 {[%clk 0:00:39]}  Bd5 {[%clk 0:00:29]} 31. Ne7 {[%clk 0:00:38]}  Bxa2 {[%clk 0:00:29]} 32. Nxf5 {[%clk 0:00:38]}  Bf8 {[%clk 0:00:29]} 33. Nd2 {[%clk 0:00:37]}  a5 {[%clk 0:00:29]} 34. Kf1 {[%clk 0:00:35]}  a4 {[%clk 0:00:29]} 35. Ne3 {[%clk 0:00:32]}  Be6 {[%clk 0:00:26]} 36. Bxh7 {[%clk 0:00:29]}  b4 {[%clk 0:00:25]} 37. Ke2 {[%clk 0:00:26]}  a3 {[%clk 0:00:25]} 38. Bb1 {[%clk 0:00:24]}  a2 {[%clk 0:00:25]} 39. Bxa2 {[%clk 0:00:24]}  Bxa2 {[%clk 0:00:25]} 40. h4 {[%clk 0:00:23]}  Kd6 {[%clk 0:00:22]} 41. Nec4+ {[%clk 0:00:20]}  Bxc4+ {[%clk 0:00:17]} 42. Nxc4+ {[%clk 0:00:19]}  Kd5 {[%clk 0:00:17]} 43. Kd3 {[%clk 0:00:20]}  b3 {[%clk 0:00:17]} 44. Ne3+ {[%clk 0:00:19]}  Ke6 {[%clk 0:00:17]} 45. Kc3 {[%clk 0:00:19]}  Bc5 {[%clk 0:00:16]} 46. Nf1 {[%clk 0:00:16]}  Bf2 {[%clk 0:00:12]} 47. Kxb3 {[%clk 0:00:16]}  e4 {[%clk 0:00:12]} 48. fxe4 {[%clk 0:00:14]}  Ke5 {[%clk 0:00:13]} 49. h5 {[%clk 0:00:14]}  Kxe4 {[%clk 0:00:12]} 50. h6 {[%clk 0:00:10]}  Kf5 {[%clk 0:00:12]} 51. h7 {[%clk 0:00:10]}  Bd4 {[%clk 0:00:10]} 52. Kc4 {[%clk 0:00:10]}  Bh8 {[%clk 0:00:10]} 53. Kd5 {[%clk 0:00:10]}  Kg6 {[%clk 0:00:10]} 54. Ke6 {[%clk 0:00:11]}  Kxh7 {[%clk 0:00:10]} 55. Kf7 {[%clk 0:00:11]}  Kh6 {[%clk 0:00:11]} 56. Ke6 {[%clk 0:00:06]}  Kg5 {[%clk 0:00:11]} 57. Nh2 {[%clk 0:00:07]}  Bc3 {[%clk 0:00:09]} 58. Kd5 {[%clk 0:00:07]}  Be1 {[%clk 0:00:09]} 59. Nf3+ {[%clk 0:00:06]}  Kg4 {[%clk 0:00:10]} 60. Nxe1 {[%clk 0:00:06]}  Kxg3 {[%clk 0:00:10]} 1/2-1/2


[Site "https://www.chess.com"]